[Event "44th Chess Olympiad Open 2022"]
[Site "Chennai"]
[Date "2022.07.30"]
[Round "2.8"]
[White "Kuzubov, Yuriy"]
[Black "Ashiku, Franc"]
[Result "1-0"]
[WhiteElo "2642"]
[BlackElo "2422"]
[Annotator "TA"]
[PlyCount "111"]
[EventDate "2022.??.??"]
[TimeControl "60"]

{[%evp 9,111,25,25,14,38,19,35,34,27,17,28,32,60,25,42,40,113,99,114,116,114,
111,106,84,82,80,70,87,74,28,41,35,52,46,53,39,44,40,68,84,142,143,144,145,152,
154,156,148,145,151,138,109,111,105,110,90,107,114,112,85,75,37,43,39,38,0,8,8,
8,0,8,8,8,8,8,0,0,0,0,2,16,16,16,16,16,8,16,16,16,16,22,22,29974,29975,29974,
29975,29975,29975,29982,29983,29983,29984,29984,29985]} 1. d4 {[%emt 0:00:04]}
Nf6 {[%emt 0:00:05]} 2. Nf3 {[%emt 0:00:20]} g6 {[%emt 0:00:09]} 3. Nbd2 {
[%emt 0:00:08]} d5 {[%emt 0:02:39]} 4. e3 {[%emt 0:00:20]} Bg7 {[%emt 0:02:57]}
5. b4 {[%emt 0:00:10]} O-O {[%emt 0:03:39]} 6. Bb2 {[%emt 0:00:06] D02:1 d4 d5
2 Nf3 sidelines, including 2...Nf6 3 g3 and 2...Nf6 3 Bf4.} Bf5 {[%emt 0:00:00]
} 7. Be2 {[%emt 0:01:10]} Ne4 {[%emt 0:02:14]} 8. O-O {[%emt 0:01:32] [#]
White is slightly better.} Qd6 $146 {[%emt 0:12:42]} ({Predecessor:} 8... Nxd2
9. Nxd2 e5 10. dxe5 Nc6 11. c4 Nxe5 12. Qb3 dxc4 13. Nxc4 Be6 14. b5 Nxc4 15.
Bxg7 Kxg7 16. Bxc4 Bxc4 17. Qxc4 {½-½ (62) Khairullin,I (2625)-Kokarev,D 
(2624) Khanty-Mansiysk 2014}) 9. a3 {[%emt 0:04:37]} Nd7 {[%emt 0:03:44]} 10.
c4 {[%emt 0:13:37]} c6 {[%emt 0:02:18]} 11. Nb3 {[%emt 0:10:32]} g5 {[%emt 0:
00:00]} 12. Rc1 {[%emt 0:01:58]} Rac8 {[%emt 0:03:19]} (12... dxc4 $14 13. Bxc4
Qg6) 13. Nc5 $1 $16 {[%emt 0:10:26]} b6 {[%emt 0:10:24]} 14. Nxe4 {[%emt 0:00:
00]} dxe4 {[%emt 0:00:36]} 15. Nxg5 {[%emt 0:05:00]} Qh6 {[%emt 0:06:59]} 16.
f4 {[%emt 0:01:19] aiming for g4.} exf3 {[%emt 0:05:09]} 17. Nxf3 {[%emt 0:00:
00][%cal Yf3h4]} Qxe3+ {[%emt 0:00:31]} 18. Kh1 {[%emt 0:00:06]} Bg6 {[%emt 0:
00:00]} 19. Re1 {[%emt 0:06:53]} (19. Rc3 $16 Qe6 20. Ng5) 19... Nf6 {[%emt 0:
00:00]} 20. Bf1 {[%emt 0:01:19]} Qf4 {[%emt 0:00:23]} (20... Qf2 $2 21. Re2 Ne4
22. Qa4 Ng3+ 23. hxg3 $18) 21. g3 {[%emt 0:03:55]} Qd6 {[%emt 0:01:34]} 22. Bg2
{[%emt 0:06:36]} Ng4 {[%emt 0:01:16] And now ...Nf2+ would win.} 23. Qe2 {
[%emt 0:08:43] Inhibits Nf2+.} e6 {[%emt 0:06:24][%cal Yg6d3]} 24. c5 $36 {
[%emt 0:08:41] Keeping Black busy.} bxc5 {[%emt 0:08:40]} (24... Qd8 $142) 25.
dxc5 {[%emt 0:00:38]} Qd3 {[%emt 0:00:19]} 26. Bxg7 $1 {[%emt 0:00:00]} Qxe2 {
[%emt 0:01:20]} 27. Rxe2 {[%emt 0:00:06][%cal Ye1e2,Ye2d2,Yd2d4]} Kxg7 {
[%emt 0:00:02]} 28. Nd4 {[%emt 0:02:37]} Bd3 {[%emt 0:01:05]} 29. Rd2 {[%emt 0:
02:19]} e5 {[%emt 0:00:19]} 30. h3 {[%emt 0:01:14]} exd4 {[%emt 0:00:59]} 31.
hxg4 {[%emt 0:00:07]} Bb5 {[%emt 0:00:17]} 32. Rxd4 {[%emt 0:00:07]} Rfe8 {
[%emt 0:02:27]} 33. Ra1 {[%emt 0:00:51]} Ba4 {[%emt 0:00:00]} 34. Rd7 {[%emt 0:
01:10]} a5 {[%emt 0:00:08]} 35. Ra7 {[%emt 0:02:11] White is more active.} (35.
Rf1 $5 {[%cal Rf1f7]} Bb3 36. bxa5 $16) 35... Ra8 $1 {[%emt 0:00:19]} 36. Rxa8
{[%emt 0:00:19]} Rxa8 $14 {[%emt 0:00:06] Endgame KRB-KRB} 37. Rf1 {[%emt 0:01:
23]} axb4 {[%emt 0:00:59]} 38. axb4 {[%emt 0:00:03] Ra1 is the strong threat.}
Bb5 {[%emt 0:00:07]} 39. Rf4 {[%emt 0:00:57]} Ra2 {[%emt 0:00:40]} 40. g5 {
[%emt 0:00:42]} Rb2 {[%emt 0:00:00]} 41. Kg1 {[%emt 0:30:23]} Kg6 {[%emt 0:30:
43]} 42. Be4+ {[%emt 0:00:35]} Kxg5 {[%emt 0:00:16]} 43. Bxh7 {[%emt 0:00:35]}
f6 {[%emt 0:00:24]} 44. Bf5 {[%emt 0:00:00]} Ba6 {[%emt 0:00:00]} 45. Bd7 {
[%emt 0:00:00]} Bb5 {[%emt 0:00:00]} 46. Rg4+ {[%emt 0:00:00]} Kh5 {[%emt 0:00:
00]} 47. Rg8 {[%emt 0:00:00]} Kh6 {[%emt 0:00:00]} 48. Bf5 {[%emt 0:00:00]}
Rxb4 {[%emt 0:00:00]} 49. Rg6+ {[%emt 0:00:00]} Kh5 {[%emt 0:00:00]} 50. Kf2 {
[%emt 0:00:00] Strongly threatening g4+.} Rc4 {[%emt 0:00:22] This move loses
the game for Black.} (50... Rb2+ $11 51. Ke3 (51. Kg1 Re2 $11) 51... Rb3+ 52.
Kd2 Rb2+ 53. Kc3 Ra2) 51. g4+ {[%emt 0:00:00][%cal Yg3g4,Yg4g5,Yg5f6] White
mates.} Kh4 {[%emt 0:00:04] [#]} 52. Kf3 $1 {[%emt 0:00:00]} Rc3+ {[%emt 0:03:
07] [#]} 53. Kf4 $1 {[%emt 0:00:00][%cal Rg6h6]} Kh3 {[%emt 0:00:15]} 54. g5+ {
[%emt 0:00:00]} Kh2 {[%emt 0:00:06]} 55. gxf6 {[%emt 0:00:00]} Bc4 {[%emt 0:00:
09]} 56. Be4 {[%emt 0:00:00] Weighted Error Value: White=0.07 (flawless) /
Black=0.20 (precise)} 1-0

[Event "44th Chess Olympiad Open 2022"]
[Site "Chennai"]
[Date "2022.07.30"]
[Round "2.8"]
[White "Onyshchuk, Volodymyr"]
[Black "Veleshnja, Zino"]
[Result "1-0"]
[WhiteElo "2612"]
[BlackElo "2263"]
[Annotator "TA"]
[PlyCount "57"]
[EventDate "2022.??.??"]
[TimeControl "60"]

{[%evp 12,57,29,13,20,18,19,6,29,26,28,-22,0,8,0,-23,82,80,78,100,138,119,149,
161,247,253,263,264,265,248,335,334,259,175,897,902,991,977,1105,1065,1604,
1535,1674,1641,1982,1908,2647,2360]} 1. e4 {[%emt 0:00:03]} e6 {[%emt 0:00:11]}
2. d4 {[%emt 0:00:10]} d5 {[%emt 0:00:05]} 3. Nc3 {[%emt 0:00:06]} Nf6 {
[%emt 0:00:12]} 4. Bg5 {[%emt 0:00:48]} dxe4 {[%emt 0:00:15]} 5. Nxe4 {[%emt 0:
00:00]} Be7 {[%emt 0:00:18]} 6. Bxf6 {[%emt 0:02:15]} gxf6 {[%emt 0:00:11]} 7.
Qd2 {[%emt 0:03:27]} a6 {[%emt 0:08:59] C13: French: Classical System: 4 Bg5
Be7, Alekhine-Chatard Attack.} 8. O-O-O {[%emt 0:08:23]} f5 {[%emt 0:11:36]} 9.
Ng3 {[%emt 0:05:34]} c5 {[%emt 0:05:32] The position is equal.} 10. Nf3 {
[%emt 0:05:59]} cxd4 {[%emt 0:05:04] [#]} 11. Bc4 $146 {[%emt 0:19:13]} (11.
Qxd4 Qxd4 12. Nxd4 Bd7 $15) ({White should try} 11. Nxd4 Rg8 12. Qc3) ({
Predecessor:} 11. Nxd4 Nc6 12. Qc3 Bf6 13. Bb5 Bd7 14. Bxc6 Bxc6 15. Nh5 Rc8
16. Rhe1 Bxd4 17. Rxd4 Qg5+ 18. Rd2 Ke7 19. Qc5+ Ke8 20. Qe5 Ke7 21. Qd6+ Ke8 {
1-0 (21) Hovhannisyan,R (2632)-Cabarkapa,N (2478) Belgrade 2021}) 11... b5 {
[%emt 0:13:08]} 12. Bb3 {[%emt 0:02:35]} Bb7 {[%emt 0:06:16]} 13. Ne5 {[%emt 0:
00:00][%cal Yg3f5]} Bd5 {[%emt 0:17:05]} (13... Bxg2 14. Rhg1 Nc6 15. Nxf7 Kxf7
16. Rxg2 $18) (13... Nc6 $11 14. Nxf7 Kxf7) 14. Rhe1 $1 $16 {[%emt 0:00:00]
[%cal Yg3f5] Threatens to win with Nxf5! White now steadily converts the win.}
(14. Qxd4 $6 Bxb3 15. Qxd8+ (15. axb3 Qxd4 16. Rxd4 Bf6 $17) 15... Bxd8 $11)
14... Bxb3 {[%emt 0:01:12]} (14... Bxg2 $2 15. Nxf5 $1 O-O 16. Nxe7+ Qxe7 17.
Rg1 $18) 15. axb3 {[%emt 0:00:00]} Rg8 {[%emt 0:10:37]} 16. Qe2 $1 {[%emt 0:00:
00][%cal Ye5f7] Nxf7! is the strong threat. White has strong compensation.
White is more active.} (16. Qxd4 Qxd4 17. Rxd4 Bf6 $15) 16... Ra7 {[%emt 0:03:
15]} 17. Kb1 {[%emt 0:00:00]} Qd5 {[%emt 0:03:41]} (17... Qc8 $142 18. Qh5 (18.
Rxd4 Rg7 $16) 18... Rf8) 18. Qh5 $18 {[%emt 0:00:00][%csl Yf7,Yh7]} Bf6 {
[%emt 0:01:43]} 19. c4 $1 {[%emt 0:06:47]} (19. Qxh7 Rh8 20. Nh5 Bxe5 $17)
19... bxc4 {[%emt 0:00:44]} (19... Qxg2 $2 20. cxb5 Rxg3 21. hxg3 $18) 20. bxc4
{[%emt 0:00:01]} Qc5 {[%emt 0:01:45] [#]} (20... Qxg2 $2 21. Nxf7 $1 Kd7 22.
Nh6 $18 (22. Qxh7 Rg7 $18) (22. Rxe6 Kxe6 23. Re1+ Kd7 $18)) 21. Nd3 {[%emt 0:
00:50]} ({But not} 21. Nxf7 Rxf7 22. Rxe6+ Kf8 $18) 21... Qxc4 {[%emt 0:03:56]}
22. Qxf5 {[%emt 0:01:16]} Rg5 $2 {[%emt 0:04:06]} (22... Rg6) 23. Qxf6 {
[%emt 0:01:29] White is clearly winning.} Ra5 {[%emt 0:00:01]} 24. Qh8+ {
[%emt 0:02:05]} Ke7 {[%emt 0:00:11]} 25. Qxb8 {[%emt 0:01:42]} Qa2+ {[%emt 0:
00:01]} 26. Kc1 {[%emt 0:00:22]} Rd7 {[%emt 0:01:21]} 27. Qb4+ {[%emt 0:00:13]}
Ke8 {[%emt 0:00:27]} 28. Ne4 {[%emt 0:00:52] Intending Nf6+ and mate.} Rc7+ {
[%emt 0:01:51]} 29. Kd2 {[%emt 0:00:06] Weighted Error Value: White=0.09 
(flawless) /Black=0.37} 1-0

[Event "44th Chess Olympiad Open 2022"]
[Site "Chennai"]
[Date "2022.07.30"]
[Round "2.8"]
[White "Pasko, Llambi"]
[Black "Korobov, Anton"]
[Result "0-1"]
[WhiteElo "2418"]
[BlackElo "2692"]
[Annotator "TA"]
[PlyCount "68"]
[EventDate "2022.??.??"]
[TimeControl "60"]

{[%evp 9,68,15,18,0,-8,0,0,-26,-22,-12,-21,-52,-43,-67,-78,-84,-73,-118,-93,
-114,-88,-116,-90,-88,-88,-86,-78,-81,-72,-81,-47,-43,-45,-233,-223,-209,-162,
-228,-227,-213,-216,-405,-400,-452,-437,-446,-406,-527,-525,-505,-520,-647,
-640,-615,-614,-565,-562,-995,-735,-956,-707]} 1. d4 {[%emt 0:00:02]} d5 {
[%emt 0:00:14]} 2. c4 {[%emt 0:00:13]} e6 {[%emt 0:00:06]} 3. Nc3 {[%emt 0:00:
00]} c6 {[%emt 0:00:07]} 4. e4 {[%emt 0:04:07]} Bb4 {[%emt 0:00:20]} 5. e5 {
[%emt 0:03:21]} Ne7 {[%emt 0:02:36]} 6. a3 {[%emt 0:04:22] D31: Queen's Gambit
Declined: Semi-Slav without ...Nf6 (+ Marshall Gambit and Noteboom) and
Exchange Variation lines without ...Nf6.} Bxc3+ {[%emt 0:00:15]} 7. bxc3 {
[%emt 0:00:03]} c5 {[%emt 0:00:15]} 8. Nf3 {[%emt 0:06:34] The position is
equal.} cxd4 {[%emt 0:01:51]} 9. cxd4 {[%emt 0:00:35]} b6 {[%emt 0:00:13][%cal
Yb7b6,Yb6b5] [#]} 10. a4 $146 {[%emt 0:03:09]} (10. Bg5 {looks sharper.} Bb7
11. Rc1 O-O 12. c5) ({Predecessor:} 10. Bg5 Nbc6 11. Rc1 h6 12. cxd5 Qxd5 13.
Bc4 Qd7 14. Be3 Bb7 15. O-O O-O 16. Nh4 {½-½ (26) Greenfeld,A (2530)-Ivanov,
S (2570) Beersheba 1998}) 10... Ba6 {[%emt 0:03:25]} 11. cxd5 {[%emt 0:06:13]}
Bxf1 $1 {[%emt 0:01:43]} 12. Kxf1 {[%emt 0:13:41] [#] aiming for d6.} Qxd5 {
[%emt 0:01:01]} 13. a5 {[%emt 0:03:01]} b5 {[%emt 0:07:36]} 14. Bg5 {[%emt 0:
09:02]} Nbc6 {[%emt 0:02:21]} 15. Rc1 {[%emt 0:00:10]} O-O {[%emt 0:03:05]} 16.
Rc5 {[%emt 0:02:08]} Qa2 {[%emt 0:07:08]} 17. Qd2 {[%emt 0:00:00]} Qb1+ {
[%emt 0:06:46]} 18. Rc1 {[%emt 0:00:55]} Qf5 {[%emt 0:05:35] Black is more
active.} 19. Ke2 {[%emt 0:04:04]} Rfc8 {[%emt 0:07:32]} 20. Bxe7 {[%emt 0:03:
10]} Nxe7 {[%emt 0:00:03]} 21. Rxc8+ $2 {[%emt 0:00:05] Now White is beyond
hope.} (21. Qd3 $15) 21... Rxc8 $19 {[%emt 0:00:23]} 22. Rc1 {[%emt 0:00:01]
Inhibits Rc2.} Qe4+ {[%emt 0:02:15]} 23. Kf1 {[%emt 0:01:06]} (23. Kd1 $142)
23... Rxc1+ {[%emt 0:00:48]} 24. Qxc1 {[%emt 0:00:14] [#] Endgame And now Qc7
would win. KQN-KQN} h6 {[%emt 0:00:22]} 25. Qe3 $2 {[%emt 0:12:44]} (25. Kg1 {
keeps fighting.}) 25... Qb1+ {[%emt 0:01:50]} 26. Ne1 {[%emt 0:01:38][%cal
Yd4d5]} Nd5 {[%emt 0:00:41]} 27. Qd3 {[%emt 0:01:45]} Qb4 {[%emt 0:00:35]} 28.
a6 {[%emt 0:03:10]} Qa4 {[%emt 0:03:43] Black is clearly winning.} 29. g3 {
[%emt 0:01:57]} Qxa6 {[%emt 0:00:23]} 30. Qc2 {[%emt 0:00:22]} b4+ {[%emt 0:00:
41]} 31. Nd3 {[%emt 0:00:15]} Qa1+ {[%emt 0:01:06]} 32. Kg2 {[%emt 0:00:04]}
Qxd4 {[%emt 0:00:22]} 33. Qc8+ {[%emt 0:00:24]} Kh7 {[%emt 0:00:00]} 34. Nc5 {
[%emt 0:00:03]} Qc4 {[%emt 0:01:02] Weighted Error Value: White=0.66/Black=0.
06 (flawless)} 0-1

[Event "44th Chess Olympiad Open 2022"]
[Site "Chennai"]
[Date "2022.07.30"]
[Round "2.8"]
[White "Mehmeti, Dritan"]
[Black "Shevchenko, Kirill"]
[Result "0-1"]
[WhiteElo "2371"]
[BlackElo "2654"]
[Annotator "TA"]
[PlyCount "50"]
[EventDate "2022.??.??"]
[TimeControl "60"]

{[%evp 11,50,31,34,21,14,8,14,10,10,0,0,0,0,0,0,-36,-33,-24,-25,-26,32,0,0,-17,
-14,0,0,0,0,0,0,-153,-158,-218,-183,-203,-198,-691,-693,-673,-604]} 1. d4 {
[%emt 0:00:04]} Nf6 {[%emt 0:00:04]} 2. Nf3 {[%emt 0:00:15]} c5 {[%emt 0:00:53]
} 3. d5 {[%emt 0:02:08]} b5 {[%emt 0:00:40][%cal Yb7b5,Yb5b4]} 4. c4 {[%emt 0:
10:24]} b4 {[%emt 0:05:03]} 5. Nbd2 {[%emt 0:03:37]} d6 {[%emt 0:07:25]} 6. e4
{[%emt 0:03:34]} g6 {[%emt 0:08:51]} 7. Be2 {[%emt 0:02:40] A57: Benko/ Volga
Gambit.} Bg7 {[%emt 0:03:30]} 8. O-O {[%emt 0:00:12]} Nbd7 {[%emt 0:00:00]
Against e5} 9. Re1 {[%emt 0:05:03] The position is equal.} O-O {[%emt 0:00:00]}
10. Qc2 {[%emt 0:02:36]} a5 {[%emt 0:09:25][%cal Ya7a5,Ya5a4,Ya4a3]} 11. Nf1 {
[%emt 0:08:16]} a4 {[%emt 0:01:55] [#]} 12. Bg5 $146 {[%emt 0:00:00]} ({
Predecessor:} 12. Rb1 Ng4 13. Ng3 Nb6 14. h3 Ne5 15. Bf4 Nbd7 16. Nxe5 Nxe5 17.
Be3 Nd7 18. Bg5 {0-1 (70) Casey,G (1651)-O'Donoghue,D Ireland 2014}) 12... h6 {
[%emt 0:06:33]} 13. Bh4 {[%emt 0:04:42]} Nh5 {[%emt 0:06:34]} 14. Rab1 {
[%emt 0:10:07]} g5 {[%emt 0:10:40]} 15. Bg3 {[%emt 0:02:29]} Qb6 {[%emt 0:05:
57]} (15... Nxg3 $11 16. hxg3 a3) 16. Qd2 {[%emt 0:07:42]} (16. h4 $14) 16...
a3 $11 {[%emt 0:08:31]} 17. b3 {[%emt 0:02:50]} Bc3 {[%emt 0:03:36]} 18. Qe3 {
[%emt 0:00:44][%cal Yh2h4]} Ndf6 {[%emt 0:02:14]} 19. h3 {[%emt 0:00:00]
Against Ng4} Re8 $36 {[%emt 0:03:59] Black is pushing.} (19... Bxe1 20. Rxe1
Nh7 21. Bd3 $15) 20. e5 {[%emt 0:08:19]} Bf5 {[%emt 0:04:32]} 21. Nxg5 $2 {
[%emt 0:07:15]} (21. exf6 $2 exf6 22. Be5 Bxe5 23. Nxe5 Rxe5 $19) (21. Rbd1 $11
) 21... hxg5 $17 {[%emt 0:02:21]} (21... Bxb1 22. Rxb1 Bd4 23. Qd3 dxe5 24.
Bxh5 hxg5 25. Bf3 $17) 22. Qxg5+ {[%emt 0:00:55]} (22. Rbc1 $17 {is a better
defense.}) 22... Ng7 $19 {[%emt 0:00:22]} ({And not} 22... Bg6 23. exf6 exf6
24. Qh6 $11) 23. Ne3 {[%emt 0:03:12] [#]} ({Wrong is} 23. exf6 $2 exf6 24. Qc1
Bxe1 $19) 23... Ne4 $1 {[%emt 0:01:52]} ({Inferior is} 23... Bxb1 24. Rxb1 Nh7
25. Qh6 $17) 24. Qxg7+ {[%emt 0:02:12]} (24. Qh6) 24... Kxg7 {[%emt 0:00:00]}
25. Nxf5+ {[%emt 0:00:04]} Kh8 {[%emt 0:00:44] Weighted Error Value: White=0.
59/Black=0.06 (flawless)} 0-1

[Event "44th Chess Olympiad Open 2022"]
[Site "Chennai"]
[Date "2022.07.30"]
[Round "2.9"]
[White "Bluebaum, Matthias"]
[Black "Keinanen, Toivo"]
[Result "1/2-1/2"]
[WhiteElo "2673"]
[BlackElo "2477"]
[Annotator "TA"]
[PlyCount "89"]
[EventDate "2022.??.??"]
[TimeControl "60"]

{[%evp 13,89,8,20,26,16,32,30,16,22,18,12,18,16,5,26,35,40,37,31,23,38,45,35,
54,47,35,46,47,67,12,13,4,11,6,16,0,0,0,0,0,0,0,0,0,0,0,0,0,0,0,0,0,0,0,0,0,0,
0,0,0,0,0,0,0,0,0,0,0,0,0,0,0,0,0,0,0,0,0]} 1. c4 {[%emt 0:00:04] ChessBase II}
e6 {[%emt 0:01:05]} 2. Nf3 {[%emt 0:00:18]} d5 {[%emt 0:01:06]} 3. e3 {[%emt 0:
00:00]} Nf6 {[%emt 0:01:38]} 4. Nc3 {[%emt 0:00:06]} Be7 {[%emt 0:08:06]} 5. b3
{[%emt 0:00:15]} O-O {[%emt 0:00:11]} 6. Bb2 {[%emt 0:00:03]} c5 {[%emt 0:00:
00] 6...c5 is better than 6...b6.} 7. cxd5 {[%emt 0:00:04]} exd5 {[%emt 0:00:
00]} 8. d4 {[%emt 0:00:27] A13: English Opening: 1...e6.} Nc6 {[%emt 0:00:12]}
9. Be2 {[%emt 0:01:06]} Ne4 {[%emt 0:01:06]} 10. dxc5 {[%emt 0:03:43] White
has an edge.} Bf6 {[%emt 0:04:28]} 11. Nd4 {[%emt 0:02:39]} Nxc5 {[%emt 0:00:
00]} 12. Nxc6 {[%emt 0:01:41]} bxc6 {[%emt 0:00:01]} 13. O-O {[%emt 0:00:29] 
[#]} Bb7 $146 {[%emt 0:04:31]} ({Predecessor:} 13... Be6 14. Qc2 Qb6 15. Rac1
Rfd8 16. Ba3 d4 17. Nd5 Rxd5 18. Bxc5 Qa5 19. e4 Rd7 {½-½ (38) Santos Ruiz,M
(2549)-Bailet,P (2466) Brest 2019 CBM 190 Extra [ChessBase II]}) 14. Qc2 {
[%emt 0:06:31]} Ne6 {[%emt 0:08:16]} 15. Rfd1 {[%emt 0:03:40]} Qe7 {[%emt 0:00:
00]} 16. Bg4 {[%emt 0:11:43]} Rfd8 {[%emt 0:14:48]} 17. Na4 {[%emt 0:06:22]}
Bxb2 {[%emt 0:02:27]} 18. Qxb2 {[%emt 0:00:06]} c5 {[%emt 0:06:15]} 19. Rac1 {
[%emt 0:02:06] Threatens to win with Bxe6.} Rac8 {[%emt 0:05:26]} 20. Qe5 {
[%emt 0:03:16]} c4 {[%emt 0:05:02]} 21. Bxe6 {[%emt 0:09:38] White is more
active.} ({White should try} 21. bxc4 $14 Rxc4 22. Rxc4 dxc4 23. Rxd8+ Qxd8 24.
Nc3) 21... fxe6 $11 {[%emt 0:04:50] The position is equal.} 22. bxc4 {[%emt 0:
00:00]} Rxc4 {[%emt 0:01:24]} 23. Rxc4 {[%emt 0:05:31]} dxc4 {[%emt 0:00:03]
[%cal Rd8d1] [#]} 24. Rxd8+ {[%emt 0:03:43]} Qxd8 $14 {[%emt 0:00:00][%cal
Rd8d1] Endgame KQB-KQN} 25. Nc3 {[%emt 0:04:21] Prevents Qd1+.} h6 $1 {[%emt 0:
09:49]} 26. Qxe6+ {[%emt 0:02:36]} Kh8 {[%emt 0:02:24]} 27. h3 {[%emt 0:08:23]}
Qd2 {[%emt 0:01:33]} 28. Qxc4 {[%emt 0:04:36] [#] aiming for Qc7.} Qe1+ {
[%emt 0:00:31]} 29. Kh2 {[%emt 0:00:01] Black must now prevent Qb4.} Qxf2 {
[%emt 0:00:24][%csl Gb7][%cal Rf2g2]} 30. Qe2 {[%emt 0:00:20]} Qf6 {[%emt 0:01:
25]} 31. Qe1 {[%emt 0:07:39]} Qe5+ {[%emt 0:01:38]} 32. Kg1 {[%emt 0:00:05]}
Bc6 {[%emt 0:03:04]} 33. e4 {[%emt 0:04:39]} Qf4 {[%emt 0:00:00]} 34. Kh1 {
[%emt 0:02:08]} a6 {[%emt 0:01:15]} 35. Qb1 {[%emt 0:02:19]} Qg3 {[%emt 0:01:
11]} 36. Qb4 {[%emt 0:01:18]} Qf4 {[%emt 0:01:28] Against Qf8+} 37. Qb1 {
[%emt 0:03:29]} Qg3 {[%emt 0:00:30]} 38. Qc1 {[%emt 0:00:40]} Qd3 {[%emt 0:01:
16] Inhibits Nd5.} 39. Qe1 {[%emt 0:00:15]} a5 {[%emt 0:01:14]} 40. Kh2 {
[%emt 0:00:35]} Qd4 {[%emt 0:01:09]} 41. Kg3 {[%emt 0:08:45]} Qe5+ {[%emt 0:05:
50]} 42. Kf3 {[%emt 0:01:57]} Qf5+ {[%emt 0:00:27]} 43. Kg3 {[%emt 0:00:33]}
Qe5+ {[%emt 0:01:19]} 44. Kf3 {[%emt 0:02:56]} Qf5+ {[%emt 0:00:00]} 45. Kg3 {
[%emt 0:00:18] Weighted Error Value: White=0.04 (flawless) / Black=0.02 
(flawless)} 1/2-1/2

[Event "44th Chess Olympiad Open 2022"]
[Site "Chennai"]
[Date "2022.07.30"]
[Round "2.9"]
[White "Sklyarov, Dmitry V."]
[Black "Svane, Rasmus"]
[Result "1/2-1/2"]
[WhiteElo "2474"]
[BlackElo "2649"]
[Annotator "TA"]
[PlyCount "69"]
[EventDate "2022.??.??"]
[TimeControl "60"]

{[%evp 10,69,-16,-34,0,-14,-10,-20,-8,-13,-2,-25,-24,-33,-34,-50,-52,-36,-48,
-52,-55,-43,-47,-60,-57,-66,-19,-25,-28,-21,-22,-28,-27,-33,-39,-37,0,-29,-25,
-32,0,0,0,0,0,-12,0,0,-8,-16,-20,-45,-37,-35,0,0,27,27,13,16,34,0]} 1. g3 {
[%emt 0:00:01]} d5 {[%emt 0:01:06]} 2. Bg2 {[%emt 0:00:05]} e5 {[%emt 0:01:18]}
3. d3 {[%emt 0:00:13]} Nf6 {[%emt 0:00:51]} 4. Nf3 {[%emt 0:00:29]} Bd6 {
[%emt 0:01:32]} 5. O-O {[%emt 0:00:56]} O-O {[%emt 0:00:09]} 6. Nc3 {[%emt 0:
00:00]} Nbd7 {[%emt 0:09:50] A00: Irregular Openings.} 7. e4 {[%emt 0:00:49]}
dxe4 {[%emt 0:00:19]} 8. Nxe4 {[%emt 0:01:50]} Nxe4 {[%emt 0:01:25] The
position is equal.} 9. dxe4 {[%emt 0:01:00]} Nc5 {[%emt 0:03:20] [#]} 10. Qe2
$146 {[%emt 0:14:00]} ({Predecessor:} 10. Re1 Re8 11. h3 c6 12. Nh4 Qc7 13. a3
a5 14. b3 b5 15. Bb2 Be6 16. Nf5 {1-0 (33) Brankovic,D (2302)-Wagh,S (2210)
Paracin 2022}) 10... a5 {[%emt 0:01:30]} 11. a4 {[%emt 0:01:53]} Qe7 {[%emt 0:
00:00]} 12. Nd2 {[%emt 0:16:32]} b6 {[%emt 0:01:09]} 13. Rd1 {[%emt 0:03:03]}
Ba6 {[%emt 0:06:27]} 14. Qg4 {[%emt 0:06:19]} Rad8 {[%emt 0:02:28]} 15. Nf1 {
[%emt 0:01:11]} Qe6 {[%emt 0:04:08]} 16. Qxe6 {[%emt 0:10:33]} Nxe6 {[%emt 0:
00:00]} 17. Be3 {[%emt 0:00:10] Prevents Nd4.} Bc5 {[%emt 0:06:02]} (17... Be7
$15) 18. Bxc5 $11 {[%emt 0:04:16]} Nxc5 {[%emt 0:01:18]} 19. b3 {[%emt 0:00:28]
} Be2 {[%emt 0:18:34]} 20. Rxd8 {[%emt 0:04:50]} Rxd8 {[%emt 0:00:07]} 21. Re1
{[%emt 0:00:10]} Bxf1 {[%emt 0:01:40]} 22. Kxf1 $15 {[%emt 0:00:01] Endgame
KRB-KRN} Kf8 {[%emt 0:07:11]} 23. h4 {[%emt 0:11:57]} Rd4 {[%emt 0:00:00]} 24.
f3 {[%emt 0:01:01]} Ke7 {[%emt 0:11:14]} (24... Rd2 $5 {[%cal Rd2c2]} 25. Re2
Rd6 $11) 25. Ke2 {[%emt 0:00:25]} Rd6 {[%emt 0:03:25][%cal Yd4d6,Yd6c6,Yc6c3]}
26. Bh3 {[%emt 0:00:05]} Na6 {[%emt 0:02:06]} 27. Rd1 {[%emt 0:00:41]} Rc6 {
[%emt 0:03:29]} 28. Rd7+ {[%emt 0:01:01]} Ke8 {[%emt 0:00:00]} 29. Rd2 {
[%emt 0:03:18] [#] Strongly threatening Bd7+.} Rc3 {[%emt 0:00:00] Hoping for .
..Nb4.} 30. Bg2 {[%emt 0:02:29]} Nb4 {[%emt 0:01:01]} 31. Kd1 {[%emt 0:00:01]}
f6 {[%emt 0:01:52]} 32. Rf2 {[%emt 0:01:10]} Rc5 {[%emt 0:00:00]} 33. Bf1 {
[%emt 0:00:18]} Ke7 $1 {[%emt 0:01:37]} 34. Bc4 {[%emt 0:01:08]} Rc6 {[%emt 0:
00:29]} 35. Rd2 {[%emt 0:03:35] Weighted Error Value: White=0.06 (flawless) /
Black=0.08 (flawless)} 1/2-1/2